[Event "3rd Manaus Open 2024"]
[Site "Manaus"]
[Date "2024.10.16"]
[Round "7.3"]
[White "Molina, Roberto Junio Brito"]
[Black "Rodriguez Vila, Andres"]
[Result "0-1"]
[ECO "A65"]
[WhiteElo "2381"]
[BlackElo "2419"]
[Annotator "RC"]
[PlyCount "148"]
[EventDate "2024.10.05"]
[EventType "swiss"]
[EventCountry "BRA"]
[SourceTitle "playchess.com"]
[Source "ChessBase"]
[SourceQuality "1"]
[TimeControl "5400+30"]

1. d4 {[%emt 0:15:16]} Nf6 {[%emt 0:00:07]} 2. c4 {[%emt 0:00:06]} c5 {[%emt 0:01:26]} 3. d5 {[%emt 0:00:21]} d6 {[%emt 0:00:06]} 4. Nc3 {[%emt 0:00:31]} g6 {[%emt 0:00:05]} 5. e4 {[%emt 0:00:57]} Bg7 {[%emt 0:00:05]} 6. f3 {[%emt 0:02:48]} O-O {[%emt 0:00:55]} 7. Be3 {[%emt 0:00:03]} e6 {[%emt 0:01:34]} 8. Qd2 {[%emt 0:00:05]} exd5 {[%emt 0:00:08]} 9. cxd5 {[%emt 0:00:05]} Bd7 {[%emt 0:00:44]} 10. Bc4 {[%emt 0:02:45]} Na6 {[%emt 0:01:41]} 11. Nge2 {[%emt 0:00:34]} Rb8 {[%emt 0:00:38]} 12. a4 {[%emt 0:00:27]} Qe7 {[%emt 0:03:30]} 13. O-O {[%emt 0:03:44]} Nb4 {[%emt 0:00:25]} 14. Bg5 {[%emt 0:04:52]} b6 {[%emt 0:06:48]} 15. Na2 {[%emt 0:07:20]} Nxa2 {[%emt 0:00:08]} 16. Rxa2 {[%emt 0:00:14]} Rfe8 {[%emt 0:00:14]} 17. Nc3 {[%emt 0:00:41]} Qf8 {[%emt 0:00:27]} 18. Qd3 {[%emt 0:06:46]} Nh5 {[%emt 0:02:08]} 19. g4 {[%emt 0:00:40]} Bf6 {[%emt 0:07:11]} 20. Bc1 {[%emt 0:01:10]} Ng7 {[%emt 0:00:21]} 21. b3 {[%emt 0:00:53]} Qe7 {[%emt 0:00:45]} 22. Re2 {[%emt 0:00:32]} h5 {[%emt 0:00:38]} 23. h3 {[%emt 0:04:33]} Bd4+ {[%emt 0:15:14]} 24. Kg2 {[%emt 0:00:49]} Qh4 {[%emt 0:00:28]} 25. Nb5 {[%emt 0:03:54]} hxg4 {[%emt 0:01:37]} 26. hxg4 {[%emt 0:00:34]} Be5 {[%emt 0:06:14]} 27. Rh1 {[%emt 0:00:51]} Qe7 {[%emt 0:12:48]} 28. Qe3 {[%emt 0:42:59]} f6 {[%emt 0:03:42]} 29. f4 {[%emt 0:00:00]} Bd4 {[%emt 0:02:51]} 30. Nxd4 {[%emt 0:00:00]} cxd4 {[%emt 0:00:07]} 31. Qxd4 {[%emt 0:00:00]} Bxg4 {[%emt 0:00:29]} 32. Ree1 {[%emt 0:00:00]} Rf8 {[%emt 0:08:33]} 33. Kf2 {[%emt 0:00:00]} Bh5 {[%emt 0:05:41]} 34. Bd2 {[%emt 0:00:00]} Rbc8 {[%emt 0:02:29]} 35. Rh2 {[%emt 0:00:00]} Rc7 {[%emt 0:02:27]} 36. Kg1 {[%emt 0:00:00]} Qd7 {[%emt 0:00:15]} 37. Qe3 {[%emt 0:00:00]} Qc8 {[%emt 0:02:30]} 38. Bd3 {[%emt 0:00:00]} Re7 {[%emt 0:00:09]} 39. Bb4 {[%emt 0:00:20]} Rd8 {[%emt 0:00:36]} 40. Rc1 {[%emt 0:00:32]} Rc7 {[%emt 0:04:41]} 41. Rxc7 {[%emt 0:02:22]} Qxc7 {[%emt 0:00:02]} 42. Rc2 {[%emt 0:00:32]} Qd7 {[%emt 0:00:32]} 43. Bc4 {[%emt 0:01:02]} Qg4+ {[%emt 0:00:44]} 44. Rg2 {[%emt 0:00:25]} Qd1+ {[%emt 0:00:07]} 45. Bf1 {[%emt 0:02:34]} Re8 {[%emt 0:00:32]} 46. Rf2 {[%emt 0:00:36]} Nf5 {[%emt 0:02:46]} 47. Qd3 {[%emt 0:00:13]} Qg4+ {[%emt 0:08:22]} 48. Kh2 {[%emt 0:00:52]} Rxe4 {[%emt 0:00:00]} 49. Bh3 {[%emt 0:00:29]} Qh4 {[%emt 0:00:00]} 50. Qxe4 {[%emt 0:00:01]} Qxf2+ {[%emt 0:00:00]} 51. Bg2 {[%emt 0:00:09]} Qg3+ {[%emt 0:00:00]} 52. Kg1 {[%emt 0:00:16]} Kg7 {[%emt 0:00:00]} 53. Be1 {[%emt 0:00:36]} Qxb3 {[%emt 0:00:00]} 54. Bf2 {[%emt 0:00:21]} Qd1+ {[%emt 0:00:00]} 55. Kh2 {[%emt 0:00:02]} Qe2 {[%emt 0:00:00]} 56. Qxe2 {[%emt 0:01:08]} Bxe2 {[%emt 0:00:00]} 57. Be1 {[%emt 0:00:15]} Kf7 {[%emt 0:00:08]} 58. Bb4 {[%emt 0:00:26]} a5 {[%emt 0:01:33]} 59. Be1 {[%emt 0:00:01]} Ne3 {[%emt 0:00:21]} 60. Kg1 {[%emt 0:00:57]} Nc4 {[%emt 0:00:49]} 61. Bc3 {[%emt 0:00:33]} f5 {[%emt 0:00:39]} 62. Kf2 {[%emt 0:00:16]} Bd3 {[%emt 0:00:03]} 63. Bd4 {[%emt 0:00:26]} Ke7 {[%emt 0:00:15]} 64. Bf3 {[%emt 0:00:46]} Kd7 {[%emt 0:00:05]} 65. Bd1 {[%emt 0:00:10]} Kc7 {[%emt 0:00:06]} 66. Bb3 {[%emt 0:00:18]} Nd2 {[%emt 0:00:18]} 67. Bd1 {[%emt 0:00:06]} Be4 {[%emt 0:00:15]} 68. Bc3 {[%emt 0:00:08]} Nc4 {[%emt 0:00:19]} 69. Be2 {[%emt 0:00:58]} Bxd5 {[%emt 0:01:57]} 70. Kg3 {[%emt 0:00:01]} Ne3 {[%emt 0:00:48]} 71. Kh4 {[%emt 0:00:20]} Bc6 {[%emt 0:00:57]} 72. Bd2 {[%emt 0:00:04]} Nc2 {[%emt 0:00:22]} 73. Bd1 {[%emt 0:00:38]} Nd4 {[%emt 0:00:08]} 74. Bc3 {[%emt 0:00:23]} Ne6 {[%emt 0:00:30]} 0-1

[Event "3rd Manaus Open 2024"]
[Site "Manaus"]
[Date "2024.10.16"]
[Round "7.4"]
[White "Cubas, Jose Fernando"]
[Black "Quintiliano, Renato R."]
[Result "1/2-1/2"]
[ECO "B26"]
[WhiteElo "2412"]
[BlackElo "2513"]
[Annotator "TA"]
[PlyCount "70"]
[EventDate "2024.10.05"]
[EventType "swiss"]
[EventCountry "BRA"]
[SourceTitle "playchess.com"]
[Source "ChessBase"]
[SourceQuality "1"]
[TimeControl "5400+30"]

{[%evp 18,70,-7,-3,0,-24,0,-45,-45,-39,-40,-38,-25,-44,0,-22,-30,-26,0,-68,-64,-80,-65,-50,-66,-89,-85,-121,-119,-155,-143,-145,-146,-252,-20,-20,-8,-9,-8,-8,-8,-8,0,0,0,0,0,0,0,0,0,0,0,0,0]} 1. e4 {[%emt 0:04:41]} c5 {[%emt 0:00:10]} 2. Nc3 {[%emt 0:00:17]} d6 {[%emt 0:00:16]} 3. g3 {[%emt 0:00:56]} Nc6 {[%emt 0:00:59]} 4. Bg2 {[%emt 0:00:09]} g6 {[%emt 0:00:14]} 5. d3 {[%emt 0:00:21]} Bg7 {[%emt 0:00:09]} 6. Be3 {[%emt 0:10:30]} Rb8 {[%emt 0:00:14]} 7. Qd2 {[%emt 0:00:54]} b5 {[%emt 0:00:10][%cal Bb7b5,Bb5b4][%mdl 32]} 8. Nge2 {[%emt 0:00:14]} b4 {[%emt 0:02:10]} 9. Nd1 {[%emt 0:00:09]} Nd4 {[%emt 0:00:24]} 10. O-O {[%emt 0:00:08]} h5 {[%emt 0:00:41]} 11. h4 {[%emt 0:02:37]} Nh6 {[%emt 0:04:22]} 12. c3 {[%emt 0:20:04]} Nxe2+ {[%emt 0:04:45] Black is slightly better.} 13. Qxe2 {[%emt 0:00:03]} bxc3 {[%emt 0:08:17]} 14. bxc3 {[%emt 0:00:06]} Ba6 {[%emt 0:03:59]} 15. f3 {[%emt 0:04:10]} O-O {[%emt 0:04:36]} 16. g4 {[%emt 0:08:29]} hxg4 {[%emt 0:12:35]} 17. fxg4 {[%emt 0:00:09]} f6 {[%emt 0:00:28]} 18. g5 {[%emt 0:18:50]} ({Better is} 18. h5 $11) 18... fxg5 $15 {[%emt 0:03:21]} 19. Rxf8+ {[%emt 0:00:11]} Qxf8 {[%emt 0:00:52]} 20. hxg5 {[%emt 0:00:02]} Nf7 {[%emt 0:00:18]} 21. Bh3 {[%emt 0:01:49]} Bc8 {[%emt 0:02:01] Repels Be6} 22. Bxc8 {[%emt 0:00:27]} Qxc8 {[%emt 0:00:53]} 23. d4 {[%emt 0:00:06]} cxd4 {[%emt 0:03:27]} 24. cxd4 {[%emt 0:00:01]} Qh3 {[%emt 0:14:42][%cal Of7g5] ...Nxg5! would now be deadly.} 25. Rc1 {[%emt 0:00:50] [#]} (25. Qd2 $17 {might work better.}) 25... Rf8 $2 {[%emt 0:08:38]} (25... Nxg5 $1 $19 26. Bxg5 Bxd4+ 27. Be3 Rb2 28. Qc4+ Kh7 29. Qf7+ Bg7) 26. Qg2 $11 {[%emt 0:01:40] The position is equal.} Nxg5 {[%emt 0:01:05][%cal Bf7g5,Bg5h3,Bh3f4,Bf4e2][%mdl 32] aiming for ...Nf3+.} 27. Qxh3 {[%emt 0:00:54]} Nxh3+ {[%emt 0:00:05]} 28. Kh2 {[%emt 0:00:07]} Nf4 {[%emt 0:00:58]} 29. Rc7 {[%emt 0:00:09][%csl LRa7,LRe7]} Ne2 {[%emt 0:01:16]} 30. Rxe7 {[%emt 0:00:48]} Bxd4 {[%emt 0:02:04]} 31. Bxd4 {[%emt 0:00:46]} Nxd4 {[%emt 0:00:07]} 32. Rxa7 {[%emt 0:00:51] KRN-KRN} Rf4 {[%emt 0:00:09]} 33. Nc3 {[%emt 0:00:18]} Rf2+ {[%emt 0:00:09]} 34. Kg1 {[%emt 0:00:17]} Rd2 {[%emt 0:00:06]} 35. Nd5 {[%emt 0:00:33]} Nf3+ {[%emt 0:23:20] Weighted Error Value: White=0.23 (precise) /Black=0.17 (very precise) .  Missed win:     	---       	Black=1      Mistake:       	White=2     	---        Inaccurate:     	White=3     	Black=1      OK:         	White=9     	Black=11     Best:        	White=2     	Black=1} 1/2-1/2

[Event "3rd Manaus Open 2024"]
[Site "Manaus"]
[Date "2024.10.16"]
[Round "7.5"]
[White "Terao, Juliana Sayumi"]
[Black "Di Berardino, Diego Rafael"]
[Result "0-1"]
[ECO "C07"]
[WhiteElo "2187"]
[BlackElo "2479"]
[Annotator "TA"]
[PlyCount "62"]
[EventDate "2024.10.05"]
[EventType "swiss"]
[EventCountry "BRA"]
[SourceTitle "playchess.com"]
[Source "ChessBase"]
[SourceQuality "1"]
[TimeControl "5400+30"]

{[%evp 10,62,17,7,5,8,25,13,9,0,0,-1,10,20,14,14,22,0,0,0,0,-50,-54,-61,-53,-53,-59,-52,-61,-54,-39,-89,-62,-61,-61,-50,-53,-50,-45,-141,-144,-147,-147,-217,-228,-278,-277,-325,-294,-641,-648,-1791,-773,-1146,-1070]} 1. e4 {[%emt 0:03:13]} e6 {[%emt 0:00:10]} 2. d4 {[%emt 0:00:12]} d5 {[%emt 0:00:04]} 3. Nd2 {[%emt 0:00:06]} c5 {[%emt 0:00:33]} 4. exd5 {[%emt 0:00:30]} Qxd5 {[%emt 0:00:07]} 5. Ngf3 {[%emt 0:00:13]} cxd4 {[%emt 0:00:13]} 6. Bc4 {[%emt 0:00:09]} Qd7 {[%emt 0:00:19]} 7. O-O {[%emt 0:00:52]} Nc6 {[%emt 0:00:11]} 8. Nb3 {[%emt 0:00:20][%cal Rb3d4][%mdl 1024] White has compensation.} Nf6 {[%emt 0:00:06] The position is equal.} 9. Qe2 {[%emt 0:00:35]} a6 {[%emt 0:01:44]} 10. a4 {[%emt 0:01:08]} Bd6 {[%emt 0:00:22]} 11. Rd1 {[%emt 0:00:56][%cal Oc1g5,Bf1d1,Bd1d4,Bd4h4][%mdl 32]} Qe7 {[%emt 0:00:07]} 12. Nbxd4 {[%emt 0:07:50]} Nxd4 {[%emt 0:00:09]} 13. Rxd4 {[%emt 0:06:33]} e5 {[%emt 0:00:43]} 14. Rh4 {[%emt 0:02:00]} Bf5 {[%emt 0:06:07]} 15. Bd2 {[%emt 0:10:43]} (15. Bg5 $11) 15... O-O $15 {[%emt 0:02:10]} 16. Re1 {[%emt 0:02:12]} e4 {[%emt 0:12:19]} 17. Nd4 {[%emt 0:02:23]} Bg6 {[%emt 0:01:06]} 18. f4 {[%emt 0:07:11]} Bc5 {[%emt 0:24:28]} 19. c3 {[%emt 0:00:53]} Rad8 {[%emt 0:03:33]} 20. Qf2 {[%emt 0:17:44]} (20. Be3 $15) 20... Bxd4 {[%emt 0:05:07]} 21. cxd4 {[%emt 0:00:09] Hoping for f5.} Bf5 {[%emt 0:00:45]} 22. h3 {[%emt 0:06:44]} Qd6 {[%emt 0:11:03]} 23. Bc3 {[%emt 0:07:30]} Rfe8 {[%emt 0:02:45]} 24. g4 {[%emt 0:03:58]} ({White should try} 24. d5 $15) 24... Be6 $17 {[%emt 0:03:05]} 25. Bf1 {[%emt 0:01:47] [#]} Bd7 {[%emt 0:06:18] Black is more active.} 26. Bg2 {[%emt 0:06:02] [#]} (26. Qh2 $17 {might work better.}) 26... Bc6 $1 $19 {[%emt 0:05:35]} (26... Bxa4 27. g5 e3 28. Rxe3 $15) 27. d5 {[%emt 0:03:39]} Qxd5 {[%emt 0:13:11]} ({Not} 27... Bxa4 28. Qd4 Qxf4 (28... Bc2 $2 29. g5 $18) 29. Qxa4 Nxd5 (29... Qg3 30. g5 $16) 30. Rh5 (30. Bxe4 $2 Qg3+ 31. Kf1 Nxc3 $19) (30. Rxe4 $2 Rxe4 31. Qxe4 Nxc3 $19) 30... Nxc3 31. bxc3 $11) (27... Nxd5 28. Be5 Qb4 29. Rxe4 $19) 28. Qg3 {[%emt 0:06:27]} Qc5+ {[%emt 0:00:22]} ({But not} 28... Bxa4 29. g5 Qc5+ 30. Qe3 Qxe3+ 31. Rxe3 $19) 29. Qf2 $2 {[%emt 0:00:41]} (29. Qe3 Qe7 (29... Qxe3+ $2 30. Rxe3 Nd5 31. Rxe4 $19) 30. f5) 29... e3 {[%emt 0:00:35] Black is clearly winning.} 30. Qe2 {[%emt 0:00:34]} Bxg2 {[%emt 0:00:37]} (30... Rd2 $142 31. Bxc6 Rxe2 32. Bxe8 Rxe1+ 33. Bxe1 Qc1 (33... Nxe8 $2 34. Rh5 $19)) 31. Kxg2 {[%emt 0:00:42]} Nd5 {[%emt 0:00:27][%csl LRc3,LRf4] Weighted Error Value: White=0.77/Black=0.22 (precise) .  Mistake:       	White=5     	---        Inaccurate:     	White=1     	Black=1      OK:         	White=8     	Black=14     Best:        	---       	Black=1      Strong:       	---       	Black=1} 0-1

[Event "3rd Manaus Open 2024"]
[Site "Manaus"]
[Date "2024.10.16"]
[Round "7.6"]
[White "Santiago, Yago De Moura"]
[Black "Pinero Rodriguez, Carlos Jose"]
[Result "1-0"]
[ECO "E01"]
[WhiteElo "2460"]
[BlackElo "2305"]
[Annotator "TA"]
[PlyCount "125"]
[EventDate "2024.10.05"]
[EventType "swiss"]
[EventCountry "BRA"]
[SourceTitle "playchess.com"]
[Source "ChessBase"]
[SourceQuality "1"]
[TimeControl "5400+30"]

{[%evp 13,125,-7,81,60,52,-35,-16,-23,-22,-41,-2,-12,-12,-15,27,-40,-41,-60,18,-130,-51,-50,-72,-89,28,-63,64,-113,-87,-106,-23,-7,0,-43,-3,-15,0,-75,-61,-42,48,43,43,62,48,36,65,40,88,17,59,0,13,0,0,0,0,0,86,0,13,0,0,0,0,0,0,0,77,17,147,123,197,121,132,139,126,112,150,150,150,150,160,18,836,419,777,623,844,814,860,851,982,912,4722,1780,7626,6415,2650,4796,29970,29971,29971,29972,4797,29964,29976,29977,29980,29980,29980,29981,29981,29979]} 1. d4 {[%emt 0:01:43]} Nf6 {[%emt 0:01:38]} 2. c4 {[%emt 0:00:07]} e6 {[%emt 0:01:14]} 3. Nc3 {[%emt 0:00:08]} d5 {[%emt 0:01:25]} 4. Nf3 {[%emt 0:00:11]} c6 {[%emt 0:00:54]} 5. g3 {[%emt 0:00:07]} dxc4 {[%emt 0:01:26]} 6. Bg2 {[%emt 0:00:10]} Nbd7 {[%emt 0:02:39]} 7. O-O {[%emt 0:00:32]} Bb4 {[%emt 0:00:30]} (7... b5 $11) 8. Qc2 $16 {[%emt 0:01:15][%mdl 1024] Wit heeft sterke compensatie. E01: Catalaans: Vroege afwijkingen.} b5 {[%emt 0:06:23]} 9. e4 {[%emt 0:00:42] Fout (0.9)} (9. a4 $14) 9... Bb7 $1 $15 {[%emt 0:02:04] Sterk} 10. e5 {[%emt 0:03:01] De stelling is in evenwicht.} Nd5 {[%emt 0:00:40] OK} 11. Ne4 $1 {[%emt 0:00:07] Sterk} h6 {[%emt 0:03:56] Onnauwkeurig} 12. b3 $146 {[%emt 0:03:39] Beste} ({Predecessor:} 12. a4 Be7 13. Bd2 a6 14. Rfd1 c5 15. Nd6+ Bxd6 16. exd6 Qb6 17. axb5 axb5 18. Rxa8+ Bxa8 19. dxc5 Nxc5 {0-1 Brett,A (2107)-Jaracz,P (2460) BCF-chT2a 1718 (4NCL) 2017 (7.13)}) 12... cxb3 {[%emt 0:00:41] OK} 13. axb3 {[%emt 0:00:06]} Be7 {[%emt 0:12:32] Onnauwkeurig} 14. Bd2 {[%emt 0:03:11] Fout (0.7)} (14. Ba3 $11) 14... a5 {[%emt 0:02:23] OK} 15. Rfc1 {[%emt 0:01:15]} b4 {[%emt 0:12:48] Fout (0.8)} (15... O-O $15) 16. Nc5 {[%emt 0:15:39] blijft gelijk. Fout (1.5)} (16. Nd6+ $11 Bxd6 17. exd6) {Zwart zou moeten proberen} 16... Bxc5 {[%emt 0:04:32] Fout (0.8)} (16... Nxc5 $17 17. dxc5 Qc7) 17. dxc5 {[%emt 0:00:08]} Qc7 {[%emt 0:00:27][%cal Rd7e5] OK} 18. Qe4 {[%emt 0:00:54]} Ba6 {[%emt 0:02:37] Fout (1.2)} (18... O-O $17) 19. h4 {[%emt 0:02:47] Fout (0.9)} (19. Qg4 $11) 19... Bb5 {[%emt 0:07:20] Fout (1.3)} (19... O-O $15) 20. h5 $2 {[%emt 0:07:51] was de enige goede zet. Fout (1.8)} (20. Qg4 $14) 20... O-O $17 {[%emt 0:08:03] Beste (Gemakkelijk)} 21. g4 {[%emt 0:00:32] Beste} Rae8 {[%emt 0:02:35] Fout (0.8)} (21... a4 $1 $17 {[%cal Ra4b3]} 22. bxa4 b3 23. axb5 b2) 22. g5 $11 {[%emt 0:04:36] Beste (Gemakkelijk)} hxg5 {[%emt 0:03:43] OK} 23. Nxg5 {[%emt 0:00:10] Onnauwkeurig} f5 $1 {[%emt 0:00:08] Sterk} 24. exf6 {[%emt 0:00:05] Beste (Gemakkelijk)} N7xf6 {[%emt 0:00:11] Een dynamisch paardenpaar.} 25. Qg6 {[%emt 0:03:12] Fout (0.8)} (25. Qh4 $11) 25... Be2 $1 $17 {[%emt 0:08:53] Sterk} 26. h6 {[%emt 0:02:26] Beste (Gemakkelijk)} Bh5 {[%emt 0:00:21] Fout (0.9)} (26... Re7 $1 $15) 27. Qxg7+ $14 {[%emt 0:00:08] Beste (Gemakkelijk)} Qxg7 {[%emt 0:00:02]} 28. hxg7 {[%emt 0:00:09]} Kxg7 {[%emt 0:00:02]} 29. Rxa5 {[%emt 0:00:09] met als doel voor Re1.} Bg4 {[%emt 0:00:07] OK} 30. Ra6 {[%emt 0:08:23]} Rc8 {[%emt 0:00:24][%cal Be8c8,Bc8c7,Bc7g7][%mdl 32] EV=19.28. OK} 31. f3 {[%emt 0:00:40] Wit is actiever. Fout (0.7)} (31. Kf1 $16) 31... Bf5 $11 {[%emt 0:00:51] Beste (Gemakkelijk)} {Wit zou moeten spelen} 32. Ne4 {[%emt 0:00:08] Fout (0.6)} (32. Re1 $14) 32... Rc7 {[%emt 0:04:16]} 33. Re1 {[%emt 0:06:48]} Nh5 {[%emt 0:02:14] OK} 34. Bc1 {[%emt 0:00:14] OK} Nhf4 {[%emt 0:01:08]} 35. Bf1 {[%emt 0:01:05] Voorkomt Nd3.} Kh7 {[%emt 0:00:56] Fout (0.9)} (35... Kg6 $11) {Beter is} 36. Ra2 {[%emt 0:03:03] Fout (0.9)} (36. Bb2 $16) 36... Rg7+ {[%emt 0:01:35]} 37. Kh1 {[%emt 0:00:17]} Kg8 {[%emt 0:01:39]} 38. Rh2 {[%emt 0:01:23] OK} Rh7 {[%emt 0:01:58]} 39. Bc4 {[%emt 0:01:18] Dreigt te winnen met Rg1+.} Rxh2+ {[%emt 0:00:20] OK} 40. Kxh2 {[%emt 0:00:01]} Ra8 {[%emt 0:00:43] Fout (0.8)} (40... Kf7 $1 $11) 41. Kg3 {[%emt 0:01:08] Fout (0.6)} (41. Bxf4 $1 $16 Nxf4 42. Kg3 Nh5+ 43. Kh4) 41... Ng6 {[%emt 0:01:34] Houdt de partij in balans. Fout (1.3)} (41... Ra1 $11) 42. Nd6 {[%emt 0:01:42] Hoopt vervolgens op Nxf5.} Ra1 {[%emt 0:01:18] [#] gaat door met vechten. Fout (0.7)} (42... Nge7 $16) {Wit zou moeten proberen} 43. Nxf5 {[%emt 0:00:49] Fout (0.8)} (43. Bxd5 $1 $18 cxd5 44. c6) 43... exf5 $16 {[%emt 0:00:01]} 44. Bd2 {[%emt 0:08:13] OK} Rxe1 {[%emt 0:01:06] OK} 45. Bxe1 {[%emt 0:00:02]} Kf7 {[%emt 0:01:12] Onnauwkeurig} 46. Bxd5+ {[%emt 0:01:16]} cxd5 {[%emt 0:00:01]} 47. Bxb4 {[%emt 0:00:11][%mdl 4096] Eindspel. c6 is de sterke dreiging. KB-KN. OK} Ne5 {[%emt 0:00:46] OK} {Wit kan overwegen} 48. Bc3 {[%emt 0:00:54] Fout (1.4)} (48. Bd2 $16) 48... Nd3 {[%emt 0:00:35][%mdl 8192] Dit kost Zwart de partij. Verliest partij (8.2)} (48... Nc6 $11) 49. b4 {[%emt 0:02:16][%cal Bb3b4,Bb4b5,Bb5b6][%mdl 32] EV=26.69. Goes to b6 (dbg)). Onnauwkeurig} d4 {[%emt 0:00:09] Fout (3.6)} (49... Ke8 $142 50. c6 d4 51. Bxd4 (51. Bd2 Kd8 $18) 51... Nxb4) 50. Bd2 $18 {[%emt 0:02:21]} ({Niet} 50. Bxd4 Nxb4 51. Kf4 Nc6 $11) 50... Ke6 {[%emt 0:00:00] Onnauwkeurig} 51. c6 {[%emt 0:01:02][%cal Bc5c6,Bc6c7][%mdl 32] EV=17.38. Goes to c7 (dbg))} Ne5 {[%emt 0:01:02]} 52. b5 {[%emt 0:00:38]} Nc4 {[%emt 0:00:02]} 53. Bb4 {[%emt 0:01:49]} Kd5 {[%emt 0:01:22]} 54. Kf2 {[%emt 0:04:46]} (54. c7 $142 Nb6 55. Ba5) 54... Nb6 {[%emt 0:00:16]} 55. c7 {[%emt 0:02:28] Ba5 zou dodelijk zijn nu.} Nc8 {[%emt 0:01:09] [#]} 56. Ba5 $1 {[%emt 0:00:14] Wit wil matzetten met b6.} Kc5 {[%emt 0:01:06] [#]} 57. b6 $1 {[%emt 0:00:07][%mdl 512]} Kc6 {[%emt 0:00:05]} 58. Ke2 {[%emt 0:00:14]} Kb7 {[%emt 0:00:55]} 59. Kd3 {[%emt 0:00:15]} Ne7 {[%emt 0:00:12] Wit zet mat.} 60. Bb4 {[%emt 0:00:33]} ({Sterker dan} 60. Kxd4 Nc6+ 61. Kc5 (61. Kc4 Nxa5+ 62. Kd5 Kc8 $11) 61... Nxa5 $11) 60... Nc6 {[%emt 0:00:33]} 61. Bd6 {[%emt 0:00:16]} Kc8 {[%emt 0:00:14]} 62. f4 {[%emt 0:00:26]} Kb7 {[%emt 0:00:08]} 63. Bc5 {[%emt 0:00:15] Blunder waarde: Wit=0.41/Zwart=0.68.  Verliest partij:   	---       	Zwart=1      Fout:        	Wit=12     	Zwart=11     Onnauwkeurig:    	Wit=2      	Zwart=4      OK:         	Wit=4      	Zwart=11     Beste:        	Wit=6      	Zwart=2      Sterk:        	Wit=1      	Zwart=3} 1-0

[Event "3rd Manaus Open 2024"]
[Site "Manaus"]
[Date "2024.10.16"]
[Round "7.7"]
[White "Piccoli, Lucas Fonseca"]
[Black "Flom, Gabriel"]
[Result "1/2-1/2"]
[ECO "B49"]
[WhiteElo "2266"]
[BlackElo "2460"]
[Annotator "TA"]
[PlyCount "24"]
[EventDate "2024.10.05"]
[EventType "swiss"]
[EventCountry "BRA"]
[SourceTitle "playchess.com"]
[Source "ChessBase"]
[SourceQuality "1"]
[TimeControl "5400+30"]

{[%evp 15,24,22,13,15,35,31,31,13,31,33,38]} 1. e4 {[%emt 0:00:05]} c5 {[%emt 0:00:04]} 2. Nf3 {[%emt 0:00:07]} e6 {[%emt 0:00:03]} 3. d4 {[%emt 0:00:09]} cxd4 {[%emt 0:00:09]} 4. Nxd4 {[%emt 0:00:06]} Nc6 {[%emt 0:00:05]} 5. Nc3 {[%emt 0:01:01]} Qc7 {[%emt 0:00:20]} 6. Be2 {[%emt 0:00:36]} Nf6 {[%emt 0:00:23]} 7. O-O {[%emt 0:00:36]} a6 {[%emt 0:00:31]} 8. Be3 {[%emt 0:00:21]} Be7 {[%emt 0:00:35]} 9. f4 {[%emt 0:02:06]} Nxd4 {[%emt 0:01:08]} 10. Qxd4 {[%emt 0:08:47] And now e5 would win.} d6 {[%emt 0:00:02]} 11. Na4 {[%emt 0:08:46]} O-O {[%emt 0:09:56][%cal Ob7b5]} 12. Nb6 {[%emt 0:04:46]} Rb8 {[%emt 0:00:03] Black did not feel at home in the position after the opening.   Weighted Error Value: White=0.06 (flawless) /Black=0.09 (flawless) .  OK:         	---       	Black=1      Best:        	---       	Black=1} 1/2-1/2

[Event "3rd Manaus Open 2024"]
[Site "Manaus"]
[Date "2024.10.16"]
[Round "7.8"]
[White "Do Valle Cardoso, Lucas"]
[Black "Filgueiras, Nathan Felipe"]
[Result "1-0"]
[ECO "B32"]
[WhiteElo "2375"]
[BlackElo "2343"]
[Annotator "RC"]
[PlyCount "73"]
[EventDate "2024.10.05"]
[EventType "swiss"]
[EventCountry "BRA"]
[SourceTitle "playchess.com"]
[Source "ChessBase"]
[SourceQuality "1"]
[TimeControl "5400+30"]

1. e4 {[%emt 0:00:07]} c5 {[%emt 0:07:46]} 2. Nf3 {[%emt 0:00:07]} Nc6 {[%emt 0:00:08]} 3. d4 {[%emt 0:00:10]} cxd4 {[%emt 0:00:04]} 4. Nxd4 {[%emt 0:00:07]} e5 {[%emt 0:00:53]} 5. Nb5 {[%emt 0:00:03]} d6 {[%emt 0:00:04]} 6. N1c3 {[%emt 0:00:10]} a6 {[%emt 0:00:02]} 7. Na3 {[%emt 0:00:09]} Be7 {[%emt 0:00:03]} 8. Nc4 {[%emt 0:01:51]} b5 {[%emt 0:00:39]} 9. Ne3 {[%emt 0:00:19]} Nf6 {[%emt 0:00:02]} 10. Ned5 {[%emt 0:09:48]} O-O {[%emt 0:05:58]} 11. Be3 {[%emt 0:04:09]} Nxd5 {[%emt 0:02:14]} 12. Nxd5 {[%emt 0:00:07]} Be6 {[%emt 0:01:27]} 13. Qd2 {[%emt 0:10:30]} Rc8 {[%emt 0:09:23]} 14. a4 {[%emt 0:21:49]} Bxd5 {[%emt 0:04:12]} 15. exd5 {[%emt 0:00:05]} Nd4 {[%emt 0:00:04]} 16. Bd3 {[%emt 0:00:10]} f5 {[%emt 0:11:33]} 17. axb5 {[%emt 0:06:26]} axb5 {[%emt 0:01:18]} 18. O-O {[%emt 0:02:38]} f4 {[%emt 0:02:19]} 19. Bxd4 {[%emt 0:00:56]} exd4 {[%emt 0:00:03]} 20. Qe2 {[%emt 0:08:21]} g6 {[%emt 0:09:12]} 21. Rfe1 {[%emt 0:02:35]} Bg5 {[%emt 0:02:19]} 22. Qg4 {[%emt 0:02:27]} Rc7 {[%emt 0:06:54]} 23. Re6 {[%emt 0:01:24]} Bf6 {[%emt 0:00:43]} 24. Ra6 {[%emt 0:09:12]} Be5 {[%emt 0:02:25]} 25. Bxg6 {[%emt 0:00:49]} Rg7 {[%emt 0:06:16]} 26. Bxh7+ {[%emt 0:00:09]} Kxh7 {[%emt 0:05:43]} 27. Qh5+ {[%emt 0:00:25]} Kg8 {[%emt 0:00:34]} 28. Rxe5 {[%emt 0:00:04]} d3 {[%emt 0:11:00]} 29. cxd3 {[%emt 0:03:25]} Qc8 {[%emt 0:04:31]} 30. Rc6 {[%emt 0:00:14]} Qa8 {[%emt 0:00:02]} 31. h4 {[%emt 0:02:42]} Qa1+ {[%emt 0:05:09]} 32. Kh2 {[%emt 0:00:01]} Qxb2 {[%emt 0:00:15]} 33. Rxd6 {[%emt 0:03:43]} Qxf2 {[%emt 0:02:09]} 34. Rg5 {[%emt 0:00:22]} f3 {[%emt 0:01:10]} 35. Rxg7+ {[%emt 0:00:20]} Kxg7 {[%emt 0:00:06]} 36. Rd7+ {[%emt 0:00:19]} Kf6 {[%emt 0:00:04]} 37. Qg5# {[%emt 0:12:47]} 1-0